bitfinex/quotes_ETHUSD_20241122
["timestamp","ask_amount","ask_price","bid_price","bid_amount"]
[1732274120889,3.0045,3328.4,3327.9,0.3]
[1732274121071,3.0045,3328.4,3327.9,0.90097]
[1732274121268,0.7633,3328.5,3328.1,0.3]
[1732274121507,0.7633,3328.5,3328.1,0.90094]
[1732274121671,3.80283,3328.7,3328.1,0.90094]
[1732274122013,3.80283,3328.7,3328.1,0.3]
[1732274122180,0.7986,3329.1,3328.2,0.3]
[1732274122384,3.00395,3329.0,3328.4,0.60087]
[1732274122590,3.004,3328.9,3328.4,0.60087]
[1732274122774,3.004,3328.9,3328.4,0.60088]
[1732274123474,3.00419,3328.7,3328.3,0.3]
[1732274124407,3.684718,3328.9,3328.3,0.90089]
[1732274124583,3.00407,3328.9,3328.4,0.60088]
[1732274124815,0.7986,3329.1,3328.5,0.60086]
[1732274125110,0.7986,3329.1,3328.4,0.3]
[1732274125111,3.0039,3329.0,3328.4,0.90087]
[1732274125324,0.7986,3329.1,3328.6,0.90085]
[1732274125675,0.7986,3329.1,3328.6,0.3]
[1732274125902,0.7986,3329.1,3328.7,0.60083]
[1732274126978,1.0,3329.2,3328.3,0.6009]
[1732274127224,1.0,3329.2,3328.2,0.90091]
[1732274127225,1.0,3329.2,3328.7,0.60082]
[1732274128131,1.0,3329.2,3328.9,0.60078]
[1732274128332,1.0,3329.2,3328.9,0.90078]
[1732274128527,1.0,3329.2,3328.9,0.3]
[1732274130045,1.0,3329.2,3329.0,0.3]
[1732274130341,3.00381,3329.1,3329.0,0.3]
[1732274130542,3.24991307,3329.1,3329.0,0.3]
[1732274131099,3.00432,3328.6,3328.2,0.3]
[1732274131302,0.300432,3328.5,3328.2,0.3]
[1732274131500,4.0729351,3328.8,3328.2,0.3]
[1732274131700,3.00427,3328.6,3328.2,0.3]
[1732274131895,3.78855,3328.8,3328.2,0.90092]
[1732274132101,4.467809,3328.8,3328.2,0.90092]
[1732274132636,1.463659,3328.8,3328.4,0.60087]
[1732274132795,0.7844,3328.8,3328.4,0.60087]
[1732274133308,3.81105,3329.1,3328.5,0.60086]
[1732274133512,0.24589623,3329.0,3328.5,0.60086]
[1732274133735,0.24589623,3329.0,3328.6,0.60083]
[1732274133909,0.24589623,3329.0,3328.5,0.60086]
[1732274134104,0.8072,3329.1,3328.7,0.60082]
[1732274134301,1.0,3329.2,3328.7,0.60082]
[1732274134599,1.0,3329.2,3328.8,0.60081]
[1732274135143,1.0,3329.2,3328.9,0.60079]
[1732274135300,1.0,3329.2,3329.0,0.3]
[1732274136512,1.0,3329.2,3329.1,0.3]
[1732274137329,1.400363,3329.2,3329.1,0.3]
[1732274137642,5.40437709,3329.2,3329.1,0.3]
[1732274137809,5.00401409,3329.2,3329.1,0.3]
[1732274138135,3.0039,3329.0,3328.6,0.3]
[1732274138643,3.0039,3329.0,3328.3,0.6009]
[1732274138644,3.00401,3328.9,3328.4,0.90088]
[1732274139252,3.479702,3329.1,3328.4,0.90088]
[1732274139445,3.24975914,3329.0,3328.4,0.3]
[1732274139741,3.24975914,3329.0,3328.3,0.6009]
[1732274139742,3.85230411,3329.0,3328.6,0.3]
[1732274139901,0.24578165,3328.9,3328.6,0.3]
[1732274140408,0.84837411,3329.0,3328.6,0.90085]
[1732274140717,3.85228411,3329.0,3328.4,0.3]
[1732274141057,3.85228411,3329.0,3328.6,0.3]
[1732274141732,3.00401,3328.9,3328.6,0.3]
[1732274141927,0.84837411,3329.0,3328.4,0.90087]
[1732274142155,3.00395,3329.0,3328.4,0.90087]
[1732274142357,3.00395,3329.0,3328.6,0.3]
[1732274142868,0.24578075,3328.9,3328.6,0.3]
[1732274143267,3.00396,3329.0,3328.4,0.60088]
[1732274143464,0.24579651,3328.9,3328.5,0.3]
[1732274143762,3.00408,3328.8,3328.5,0.3]
[1732274143957,3.00408,3328.8,3328.2,0.3]
[1732274143958,3.00426,3328.6,3328.2,0.3]
[1732274144323,1.11468765,3328.7,3328.3,0.3]
[1732274144546,3.79392,3328.7,3328.3,0.3]
[1732274144863,3.2500141,3328.6,3328.3,0.3]
[1732274145362,0.7897,3328.7,3328.4,0.3]
[1732274145560,3.00427,3328.6,3328.4,0.3]
[1732274146456,3.00427,3328.6,3328.2,0.3]
[1732274147623,3.00418,3328.7,3328.3,0.3]
[1732274147930,3.00415,3328.8,3328.3,0.3]
[1732274148245,0.24565249,3328.7,3328.3,0.3]
[1732274148567,3.00423,3328.7,3328.3,0.3]
[1732274149692,0.70708251,3328.8,3328.3,0.9009]
[1732274149959,3.71121251,3328.8,3328.3,0.9009]
[1732274150127,3.71121251,3328.8,3328.3,0.90089]
[1732274150326,3.77656,3329.1,3328.4,0.90088]
[1732274150543,3.24952974,3329.0,3328.4,0.90088]
[1732274150728,3.24965974,3328.9,3328.4,1.50175]
[1732274150928,3.00406,3328.9,3328.4,1.50175]
[1732274151130,0.24558848,3328.8,3328.4,1.50175]
[1732274153142,4.56169309,3328.6,3328.2,0.3]
[1732274153852,4.56169309,3328.6,3328.0,0.90095]
[1732274154041,1.55742309,3328.6,3328.0,0.90095]
[1732274154239,4.56169309,3328.6,3328.0,0.90094]
[1732274156058,1.55742309,3328.4,3328.2,0.3]
[1732274156863,1.55742309,3328.4,3328.1,0.3]
[1732274157361,7.56641309,3328.4,3328.1,0.3]
[1732274157567,3.00456,3328.3,3328.1,0.3]
[1732274157939,3.00456,3328.3,3327.9,0.3]
[1732274158274,1.55742309,3328.4,3328.1,0.3]
[1732274158435,4.56187309,3328.4,3328.1,0.3]
[1732274158636,3.00445,3328.4,3328.1,0.3]
[1732274159339,3.00426,3328.6,3327.9,0.90097]
[1732274159594,3.00446,3328.4,3327.9,0.90097]
[1732274160321,3.00485,3328.0,3327.4,0.3]
[1732274160482,3.00485,3328.0,3327.4,0.90106]
[1732274160912,3.25022442,3327.9,3327.4,0.90106]
[1732274161107,3.00503,3327.8,3327.4,0.3]
[1732274161493,3.00503,3327.8,3327.3,0.3]
[1732274161924,3.00492,3327.9,3327.3,0.3]
[1732274162219,3.00513,3327.7,3327.3,0.3]
[1732274162624,1.40949055,3328.0,3327.5,0.3]
[1732274162919,3.00509,3327.7,3327.5,0.3]
[1732274163631,3.00509,3327.7,3327.3,0.3]
[1732274164496,3.00499,3327.8,3327.3,0.3]
[1732274164700,3.00499,3327.8,3327.0,0.60113]
[1732274164701,3.00492,3327.9,3327.4,0.3]
[1732274165100,3.73445255,3327.9,3327.4,0.3]
[1732274165600,3.73445255,3327.9,3324.5,1.55462234]
[1732274165601,0.7919,3327.7,3327.5,0.3]
[1732274165796,6.29556553,3327.6,3327.5,0.3]
[1732274166033,6.54028524,3327.6,3327.5,0.3]
[1732274166247,7.35498524,3327.6,3327.5,0.3]
[1732274166600,7.35498524,3327.6,3326.7,0.60118]
[1732274166601,3.00547,3327.3,3326.8,0.3]
[1732274166816,3.00555,3327.2,3326.8,0.3]
[1732274167054,3.00555,3327.2,3325.9,0.83374472]
[1732274167055,4.11130553,3327.0,3326.7,0.3]
[1732274167232,3.00589,3326.8,3326.7,0.3]
[1732274167503,3.00589,3326.8,3326.0,0.6013]
[1732274167504,3.00617,3326.5,3326.0,0.6013]
[1732274167740,3.00617,3326.5,3325.8,0.60135]
[1732274167912,3.00617,3326.5,3325.8,1.20269]
[1732274168114,3.00617,3326.5,3325.9,0.3]
[1732274168313,0.8286,3326.6,3325.9,0.3]
[1732274168516,1.0,3326.5,3325.9,0.90132]
[1732274168749,4.00616,3326.5,3325.9,0.90132]
[1732274169223,3.29040553,3326.4,3325.6,0.3]
[1732274169433,3.00634,3326.3,3325.8,0.3]
[1732274170031,3.29040553,3326.4,3325.8,0.60135]
[1732274170228,6.29666553,3326.4,3325.8,0.60135]
[1732274170442,6.29666553,3326.4,3325.5,0.60139]
[1732274170443,3.00634,3326.3,3325.6,0.60138]
[1732274170601,3.29040553,3326.4,3325.5,0.60139]
[1732274170602,4.40355208,3326.4,3325.5,0.60139]
[1732274170960,3.0067,3325.9,3325.3,0.60143]
[1732274171245,10.08993553,3326.1,3325.4,0.60142]
[1732274171408,3.71500255,3326.0,3325.4,0.60142]
[1732274172039,3.71500255,3326.0,3325.2,0.60146]
[1732274172208,3.0069,3325.7,3325.1,0.60148]
[1732274172405,0.7527,3325.5,3325.0,0.60149]
[1732274172608,0.7527,3325.5,3324.2,0.60163]
[1732274172609,6.29783553,3325.1,3324.2,0.60163]
[1732274172811,6.29783553,3325.1,3324.4,0.6016]
[1732274173044,3.29040553,3325.1,3324.2,0.60163]
[1732274173221,3.00761,3324.9,3324.2,0.60163]
[1732274173407,3.00771,3324.8,3324.2,0.60163]
[1732274173848,3.76031,3324.9,3324.0,0.60168]
[1732274174016,3.00779,3324.7,3324.1,0.60164]
[1732274174573,3.00779,3324.7,3323.8,0.60171]
[1732274174713,3.00788,3324.6,3324.0,0.60168]
[1732274174910,3.00788,3324.6,3323.8,0.60171]
[1732274175213,3.00788,3324.6,3322.4,0.60196]
[1732274175214,3.29040553,3324.5,3323.0,0.03008232]
[1732274175522,1.0,3324.7,3324.2,0.60163]
[1732274175917,4.00785,3324.7,3324.0,0.60168]
[1732274176118,3.00806,3324.4,3323.7,0.60173]
[1732274176552,3.00824,3324.2,3323.5,0.60175]
[1732274176745,0.68054,3324.2,3323.4,0.60178]
[1732274176908,0.68054,3324.2,3323.6,0.60175]
[1732274177109,0.68054,3324.2,3323.4,0.60179]
[1732274177417,3.45616,3324.1,3323.4,0.60179]
[1732274177838,3.29040553,3323.9,3323.3,0.6018]
[1732274178221,0.44778,3324.1,3323.4,0.60179]
[1732274179060,3.45612,3324.1,3323.4,0.60179]
[1732274179266,0.67465255,3324.0,3323.4,0.60179]
[1732274179770,0.67465255,3324.0,3323.7,0.60172]
[1732274179973,0.7891,3324.3,3324.0,0.60168]
[1732274180128,3.29040553,3324.5,3324.0,0.60167]
[1732274180836,3.29040553,3324.2,3323.6,0.60175]
[1732274181069,3.29040553,3324.2,3323.8,0.60171]
[1732274181363,3.00798,3324.5,3324.1,0.60166]
[1732274181364,3.29040553,3324.5,3324.1,0.60166]
[1732274181585,3.29040553,3324.5,3323.9,0.60169]
[1732274181759,0.40783055,3324.4,3324.0,0.60168]
[1732274182130,0.40783055,3324.4,3324.2,0.60164]
[1732274182472,0.40783055,3324.4,3324.0,0.60168]
[1732274182679,0.36982361,3324.3,3323.8,0.6017]
[1732274182833,0.36982361,3324.3,3323.9,0.60168]
[1732274183365,0.36982361,3324.3,3324.0,0.60168]
[1732274183533,3.29040553,3324.5,3324.1,0.60165]
[1732274183729,3.29040553,3324.5,3324.0,0.60168]
[1732274183943,3.29040553,3324.5,3324.1,0.60165]
[1732274184384,3.29040553,3324.5,3324.2,0.60164]
[1732274184593,1.0,3324.7,3324.5,0.60158]
[1732274184878,1.0,3324.7,3324.6,0.60157]
[1732274185080,1.0,3324.7,3324.6,1.082047]
[1732274185236,3.29040553,3325.8,3325.4,0.60143]
[1732274185589,0.7623,3325.9,3325.3,0.3]
[1732274185752,1.0,3325.8,3325.5,0.90139]
[1732274185957,1.0,3325.8,3325.7,0.90137]
[1732274187037,0.8285,3326.7,3325.7,1.111785]
[1732274187240,0.8285,3326.7,3326.4,0.60123]
[1732274187477,0.8285,3326.7,3325.7,0.210415]
[1732274187478,4.11890553,3326.7,3325.7,0.210415]
[1732274187647,4.11890553,3326.7,3325.9,0.90132]
[1732274187648,6.29665553,3326.4,3325.9,0.90132]
[1732274187848,6.29665553,3326.4,3325.9,0.3]
[1732274188270,6.70843608,3326.6,3325.9,0.90134]
[1732274188439,3.40335298,3326.5,3325.9,0.90134]
[1732274188639,3.29040553,3326.3,3325.6,0.3]
[1732274188872,3.00643,3326.2,3325.6,0.90139]
[1732274189073,3.33547055,3326.2,3325.6,0.90139]
[1732274189273,3.29040553,3326.0,3325.6,0.3]
[1732274189476,0.7582,3325.9,3325.6,0.3]
[1732274189780,1.46372955,3325.9,3325.7,0.3]
[1732274189957,0.32904055,3326.2,3325.0,0.3]
[1732274190152,7.05845553,3326.3,3325.6,0.60138]
[1732274190386,4.05210553,3326.3,3325.8,0.60135]
[1732274190589,4.05210553,3326.3,3326.1,0.60128]
[1732274190761,1.0,3326.3,3326.1,0.60128]
[1732274191285,1.0,3326.3,3325.9,0.60133]
[1732274191754,7.29682553,3326.3,3325.1,0.90147]
[1732274191953,7.29682553,3326.3,3325.6,0.60139]
[1732274191954,5.32008808,3326.3,3325.6,0.60139]
[1732274192146,5.32008808,3326.3,3325.7,0.60137]
[1732274192345,5.32008808,3326.3,3325.8,0.60135]
[1732274193371,5.32008808,3326.3,3325.2,0.90145]
[1732274193372,1.0,3326.3,3325.2,0.90145]
[1732274193579,1.0,3326.3,3326.2,0.60128]
[1732274194162,1.0,3326.3,3326.2,0.30064]
[1732274194490,1.0,3326.3,3326.0,0.30065]
[1732274194690,1.0,3326.3,3325.9,0.30066]
[1732274195282,1.72966155,3326.3,3325.6,0.30069]
[1732274195493,3.29040553,3325.9,3325.4,0.3007]
[1732274196172,3.29040553,3325.9,3325.2,0.30073]
[1732274196372,3.00683,3325.8,3325.2,0.30073]
[1732274196575,6.29711553,3325.9,3325.3,0.30072]
[1732274196784,0.93038655,3325.8,3325.3,0.30072]
[1732274197464,3.0069,3325.7,3325.1,0.30073]
[1732274197665,0.93038655,3325.8,3324.5,0.3]
[1732274197972,3.29040553,3325.9,3325.3,0.30072]
[1732274198153,3.00659,3326.1,3325.5,0.3007]
[1732274198354,3.55669,3326.0,3325.3,0.30072]
[1732274198554,1.28606755,3326.0,3325.3,0.30072]
[1732274198784,3.00672,3325.9,3325.3,0.30072]
[1732274199488,3.00672,3325.9,3325.3,0.60143]
[1732274199646,1.28606755,3326.0,3325.3,0.30071]
[1732274199853,4.29269755,3326.0,3325.4,0.3007]
[1732274200051,1.28606755,3326.0,3325.4,0.3007]
[1732274200391,1.28606755,3326.0,3324.8,0.30076]
[1732274200392,3.00677,3325.9,3325.2,0.30072]
[1732274200691,3.00677,3325.9,3325.3,0.30071]
[1732274201109,4.35408553,3326.2,3324.5,0.3]
[1732274201110,7.36053553,3326.2,3324.5,0.3]
[1732274201277,7.36053553,3326.2,3324.6,0.33007062]
[1732274201278,6.29685553,3326.2,3324.6,0.33007062]
[1732274201604,1.0,3326.3,3326.0,0.30065]
[1732274201766,1.0,3326.3,3326.2,0.30064]
[1732274203067,1.0,3326.3,3326.0,0.30065]
[1732274203469,1.0,3326.3,3325.8,0.60134]
[1732274203669,1.0,3326.3,3325.9,0.30066]
[1732274203972,1.0,3326.3,3326.0,0.30065]
[1732274204884,1.0,3326.3,3326.1,0.30065]
[1732274205078,1.0,3326.3,3326.2,0.3]
[1732274205763,4.00634,3326.3,3326.2,0.3]
[1732274205961,1.400634,3326.3,3325.9,0.3]
[1732274206174,1.0,3326.3,3325.9,0.3]
[1732274206379,4.00635,3326.3,3325.9,0.3]
[1732274207611,3.00649,3326.2,3326.0,0.3]
[1732274207808,4.197425,3326.2,3326.0,0.3]
[1732274208189,3.00678,3325.9,3325.3,0.3]
[1732274208504,3.0068,3325.8,3325.3,0.3]
[1732274209882,3.00691,3325.7,3325.3,0.3]
[1732274210209,3.0068,3325.8,3325.3,0.3]
[1732274211404,3.00664,3326.0,3325.5,0.3]
[1732274211604,3.00672,3325.9,3325.5,0.3]
[1732274212381,3.00672,3325.9,3325.4,0.3]
[1732274212871,3.00664,3326.0,3325.4,0.3]
[1732274213078,3.00688,3325.8,3325.4,0.3]
[1732274213272,3.00698,3325.6,3325.4,0.3]
[1732274213477,3.00698,3325.6,3325.2,0.3]
[1732274213673,3.00707,3325.5,3325.2,0.3]
[1732274213983,3.00698,3325.6,3324.8,0.3]
[1732274213984,3.00736,3325.2,3324.8,0.3]
[1732274214384,3.00743,3325.1,3324.8,0.3]
[1732274214576,3.608897,3325.1,3324.6,0.3]
[1732274214773,5.369497,3325.1,3324.6,0.3]
[1732274215508,3.00754,3325.0,3324.6,0.3]
[1732274215709,8.377007,3325.1,3324.6,0.3]
[1732274215944,5.369497,3325.1,3324.6,0.3]
[1732274216536,5.369497,3325.1,3324.6,0.60078]
[1732274216829,1.7606,3325.1,3324.8,0.30076]
[1732274217124,1.0,3325.1,3324.8,0.30076]
[1732274217323,1.0,3325.1,3325.0,0.30075]
[1732274217510,1.0,3325.1,3325.0,0.60075]
[1732274220330,0.8134,3326.2,3325.8,7.94]
[1732274220490,3.81959,3326.5,3325.6,0.30068]
[1732274220690,3.00648,3326.2,3325.6,0.60068]
[1732274220925,3.3316072,3326.2,3325.6,0.3]
[1732274221227,3.00672,3325.9,3325.6,0.3]
[1732274221525,3.00681,3325.8,3325.6,0.3]
[1732274221686,3.00681,3325.8,3325.4,0.3]
[1732274221890,3.00689,3325.7,3325.4,0.3]
[1732274222731,3.00706,3325.5,3325.2,0.3]
[1732274223638,3.00731,3325.3,3324.9,0.3]
[1732274223938,3.00742,3325.1,3325.0,0.3]
[1732274224236,3.81231,3325.4,3325.0,0.3]
[1732274224446,3.00698,3325.6,3325.0,0.3]
[1732274224447,3.00698,3325.6,3325.0,0.60074]
[1732274224738,1.188299,3325.7,3325.0,0.60074]
[1732274224739,3.00706,3325.5,3325.0,0.60075]
[1732274225043,3.00702,3325.6,3325.2,0.3]
[1732274225415,0.8051,3325.7,3325.2,0.60073]
[1732274225619,3.29040553,3325.3,3324.5,0.3]
[1732274225845,3.29040553,3325.3,3323.6,0.30087]
[1732274225846,6.29771553,3325.3,3324.8,0.3]
[1732274226136,3.0074,3325.2,3324.8,0.3]
[1732274226339,3.00716,3325.4,3324.8,0.3]
[1732274226501,3.00708,3325.5,3323.8,3.0]
[1732274226502,3.00712,3325.5,3324.9,0.3]
[1732274226705,3.00706,3325.5,3324.9,0.3]
[1732274226912,3.00732,3325.3,3324.9,0.3]
[1732274227539,3.81421,3325.0,3324.9,0.3]
[1732274227909,0.8067,3324.9,3324.2,0.3]
[1732274228102,6.0161,3324.5,3324.2,0.3]
[1732274228307,3.29040553,3324.7,3324.2,0.3]
[1732274228543,0.8067,3324.9,3323.2,0.30091]
[1732274228544,3.00793,3324.6,3324.1,0.3]
[1732274229514,3.00793,3324.6,3323.9,0.3]
[1732274229815,3.00798,3324.5,3323.9,0.60084]
[1732274230470,0.48413386,3324.8,3323.9,0.3]
[1732274230742,0.48413386,3324.8,3323.2,3.0]
[1732274230743,6.01643,3324.3,3323.7,0.60086]
[1732274230907,3.0082,3324.3,3323.7,0.3]
[1732274231354,3.0082,3324.3,3321.0,1.88454432]
[1732274231355,3.00873,3323.7,3322.8,0.30094]
[1732274231513,6.01751,3323.7,3322.8,0.30094]
[1732274231844,3.00873,3323.7,3323.0,0.30093]
[1732274232041,3.00878,3323.7,3323.0,0.30093]
[1732274232229,3.00878,3323.7,3323.0,0.60093]
[1732274232407,6.318328,3323.7,3323.0,0.60093]
[1732274232607,3.00888,3323.5,3323.0,0.3]
[1732274232833,3.00869,3323.7,3323.0,0.60093]
[1732274233152,3.0088,3323.6,3323.0,0.60093]
[1732274233945,3.00867,3323.8,3323.1,0.30092]
[1732274234241,3.00867,3323.8,3323.2,0.3009]
[1732274234409,3.00867,3323.8,3323.1,0.30092]
[1732274234607,3.76544,3324.0,3323.1,0.30092]
[1732274234840,3.00852,3323.9,3323.3,0.3009]
[1732274235047,3.00863,3323.8,3322.6,0.60096]
[1732274235215,3.00863,3323.8,3323.1,0.30092]
[1732274235415,3.00863,3323.8,3323.2,0.30091]
[1732274235654,3.00869,3323.7,3323.1,0.30092]
[1732274235950,3.00863,3323.8,3323.1,0.30091]
[1732274236112,3.00863,3323.8,3323.2,0.30091]
[1732274236726,3.00879,3323.6,3322.6,0.3]
[1732274236906,0.601742,3323.6,3322.6,0.3]
[1732274237106,0.601742,3323.6,3322.5,0.03009055]
[1732274237107,0.8324,3323.3,3322.5,0.30097]
[1732274237407,0.8324,3323.3,3322.2,0.602]
[1732274237608,3.00897,3323.4,3322.7,0.30095]
[1732274237943,3.0088,3323.6,3322.9,0.30093]
[1732274238149,3.00862,3323.8,3322.9,0.30093]
[1732274238150,3.00862,3323.8,3323.1,0.30092]
[1732274238305,3.00862,3323.8,3322.3,0.60098]
[1732274238306,3.00861,3323.8,3323.2,0.30091]
[1732274238709,3.00865,3323.8,3323.1,0.30091]
[1732274239145,3.00869,3323.7,3323.1,0.30091]
[1732274239342,3.00869,3323.7,3323.2,0.30091]
[1732274240143,3.29040553,3323.7,3322.6,0.3]
[1732274240320,3.00879,3323.6,3323.0,0.30092]
[1732274240932,3.00865,3323.8,3323.1,0.30092]
[1732274241252,3.00865,3323.8,3323.3,0.3009]
[1732274241814,3.00853,3323.9,3323.3,0.3009]
[1732274242063,4.12280553,3324.0,3323.3,0.3009]
[1732274242216,3.00851,3323.9,3323.3,0.3009]
[1732274242416,4.12280553,3324.0,3323.4,0.30089]
[1732274242643,4.12280553,3324.0,3323.5,0.30088]
[1732274243043,0.8324,3324.0,3323.5,0.30088]
[1732274243247,0.8324,3324.0,3323.4,0.30089]
[1732274243415,3.84089,3324.0,3323.4,0.30089]
[1732274244039,3.00861,3323.8,3323.2,0.30091]
[1732274244355,6.29917553,3323.7,3323.0,0.30092]
[1732274244759,3.00879,3323.6,3323.0,0.30092]
[1732274244940,3.00879,3323.6,3322.8,0.30094]
[1732274244941,3.00897,3323.4,3322.8,0.30094]
[1732274245147,3.78926,3323.3,3322.9,0.3]
[1732274245842,3.00917,3323.2,3322.9,0.3]
[1732274246046,3.00917,3323.2,3322.8,0.3]
[1732274246256,0.7802,3323.3,3322.8,0.3]
[1732274246437,6.29938553,3323.4,3323.0,0.3]
[1732274246754,3.00863,3323.8,3323.0,0.3]
[1732274246927,7.11805553,3324.0,3322.3,0.30099]
[1732274246928,3.00852,3323.9,3323.3,0.30089]
[1732274247341,3.00852,3323.9,3323.3,0.60089]
[1732274247761,4.00852,3323.9,3323.4,0.60089]
[1732274248119,1.0,3323.9,3323.6,0.30087]
[1732274248459,1.0,3323.9,3323.4,0.3]
[1732274248661,1.0,3323.9,3323.5,0.30088]
[1732274250172,1.0,3323.9,3323.5,0.60176]
[1732274250366,1.0,3323.9,3323.5,0.30088]
[1732274251956,1.0,3323.9,3323.4,0.60089]
[1732274252256,1.0,3323.9,3323.5,0.30088]
[1732274255173,1.0,3323.9,3323.6,0.3]
[1732274255559,1.0,3323.9,3323.8,0.30086]
[1732274255862,3.00782,3324.7,3323.8,0.30086]
[1732274255863,0.793,3325.1,3324.7,0.30077]
[1732274256070,0.793,3325.1,3323.7,0.30086]
[1732274256071,0.24466332,3325.0,3324.9,0.30076]
[1732274256291,0.793,3325.4,3325.0,0.30074]
[1732274256451,7.08999553,3326.1,3324.4,3.3]
[1732274256657,0.6365813,3326.0,3325.4,0.60071]
[1732274256890,0.24483896,3325.9,3325.6,0.30069]
[1732274257050,3.00676,3325.9,3325.5,0.3]
[1732274257251,3.79954,3326.1,3325.5,0.6007]
[1732274257450,0.62470448,3326.0,3325.6,0.30069]
[1732274257690,0.379954,3326.0,3325.6,0.30069]
[1732274257858,0.379954,3326.0,3325.5,0.3]
[1732274258059,3.29040553,3326.2,3325.5,0.3]
[1732274258389,3.00697,3325.6,3325.5,0.3]
[1732274259053,0.7815,3325.7,3325.1,0.60074]
[1732274259292,3.78839,3325.7,3325.1,0.60074]
[1732274259462,0.679519,3325.6,3325.4,0.3]
[1732274259660,3.00664,3326.0,3325.4,0.6007]
[1732274259990,6.29686553,3326.2,3325.4,0.6007]
[1732274259991,0.300664,3325.9,3325.5,0.30069]
[1732274260145,3.00652,3326.1,3325.6,0.30069]
[1732274260350,3.307166,3326.1,3325.4,0.3007]
[1732274260592,3.307166,3326.1,3325.5,0.3007]
[1732274260958,3.307166,3326.1,3325.2,0.30072]
[1732274260959,0.7947,3326.0,3325.2,0.30072]
[1732274261158,4.1320566,3326.0,3325.4,0.30071]
[1732274261606,1.1254166,3326.0,3325.5,0.3007]
[1732274261759,3.80134,3326.0,3325.5,0.3007]
[1732274261961,3.80134,3326.0,3325.5,0.6014]
[1732274261962,0.7947,3326.0,3325.5,0.6014]
[1732274262191,0.7947,3326.0,3325.5,0.3007]
[1732274262394,0.380122,3325.9,3325.5,0.3007]
[1732274262609,3.0,3326.4,3325.3,0.30072]
[1732274262610,3.00611,3326.6,3326.0,0.30065]
[1732274262788,3.76971,3326.8,3326.3,0.30063]
[1732274263108,0.70601155,3326.8,3326.4,0.30062]
[1732274263278,0.7638,3327.1,3326.5,0.30061]
[1732274263602,3.00576,3327.0,3326.4,0.30062]
[1732274263911,0.376956,3326.9,3326.4,0.30062]
[1732274264403,3.0055,3327.3,3326.5,0.30061]
[1732274264741,3.00553,3327.2,3325.6,3.0]
[1732274264909,1.00507561,3327.2,3326.5,0.30061]
[1732274265199,1.00507561,3327.2,3325.9,0.30066]
[1732274265361,4.00527,3327.5,3326.8,0.30058]
[1732274265562,1.0,3327.5,3326.8,0.30058]
[1732274266380,1.0,3327.5,3326.4,0.30061]
[1732274266381,3.00565,3327.1,3326.4,0.30061]
[1732274266580,3.00577,3327.0,3326.4,0.30061]
[1732274266812,3.00577,3327.0,3325.9,0.30066]
[1732274266813,3.00622,3326.5,3325.9,0.30066]
[1732274268714,3.00589,3326.8,3325.3,3.0]
[1732274268914,3.00589,3326.8,3326.1,0.30064]
[1732274269118,0.55,3326.7,3325.9,0.30066]
[1732274269412,0.55,3326.5,3325.9,0.30066]
[1732274269825,3.00644,3326.2,3325.2,3.0]
[1732274270129,3.00644,3326.2,3324.8,3.0]
[1732274270323,3.00644,3326.2,3325.5,0.30069]
[1732274270617,3.6432764,3326.2,3325.5,0.30069]
[1732274271115,0.6368364,3326.2,3325.7,0.30068]
[1732274271418,0.6368364,3326.2,3324.7,4.24067687]
[1732274271419,3.00694,3325.7,3324.4,3.0]
[1732274271599,3.00694,3325.7,3325.0,0.30074]
[1732274271807,0.55,3326.0,3325.2,0.30072]
[1732274272003,3.55662,3326.0,3325.4,0.30071]
[1732274272251,0.55,3325.8,3325.2,0.30072]
[1732274272519,3.00688,3325.7,3324.4,0.33086168]
[1732274272711,3.00688,3325.7,3324.3,0.03007252]
[1732274272922,3.00688,3325.7,3324.5,0.03007071]
[1732274273897,0.9412365,3325.8,3324.1,0.03007071]
[1732274274085,0.9412365,3325.8,3324.2,0.41847602]
[1732274274285,0.9412365,3325.8,3324.3,0.03007254]
[1732274274608,0.9412365,3325.8,3324.3,0.43854856]
[1732274274914,3.00702,3325.6,3324.3,0.03007255]
[1732274275123,3.00696,3325.7,3324.3,0.03007255]
[1732274275484,3.00699,3325.6,3324.3,0.03007255]
[1732274276279,3.00699,3325.6,3324.1,0.3]
[1732274276280,0.55,3325.5,3324.1,0.3]
[1732274276486,0.55,3325.5,3323.7,5.36]
[1732274276487,3.0073,3325.3,3324.2,0.3]
[1732274277420,3.0073,3325.3,3323.8,0.33007602]
[1732274277618,0.30073,3325.2,3323.8,0.33007602]
[1732274277818,6.01512,3325.0,3323.8,0.3]
[1732274278116,3.00752,3325.0,3323.8,0.3]
[1732274278278,0.55,3324.9,3323.8,0.3]
[1732274278485,3.00781,3324.7,3323.3,0.33007862]
[1732274278714,3.00788,3324.6,3323.3,0.33007862]
[1732274278917,3.00797,3324.5,3323.3,0.3]
[1732274279126,0.355781,3324.7,3323.4,0.03008044]
[1732274279429,0.55,3324.7,3323.4,0.03008044]
[1732274280519,3.00788,3324.6,3323.5,0.03007952]
[1732274280825,3.00788,3324.6,3323.0,0.76796188]
[1732274280826,3.00788,3324.6,3323.3,0.3]
[1732274281026,1.005788,3324.5,3323.3,0.3]
[1732274281688,0.55,3324.6,3323.3,0.3]
[1732274281888,0.55,3324.6,3323.1,0.3]